bitfinex/quotes_SOLUSD_20250611
["timestamp","ask_amount","ask_price","bid_price","bid_amount"]
[1749604867970,49.6408262,163.52,163.51,5.27315937]
[1749604868165,68.43263663,163.52,163.51,5.27315937]
[1749604868468,50.25783663,163.52,163.51,5.27315937]
[1749604872070,38.43742353,163.52,163.51,5.27315937]
[1749604872275,50.25783663,163.52,163.51,5.27315937]
[1749604877565,7.8252,163.52,163.51,5.27315937]
[1749604877767,11.8204131,163.52,163.51,5.27315937]
[1749604878380,31.76,163.52,163.51,5.27315937]
[1749604878581,43.5804131,163.52,163.51,5.27315937]
[1749604880595,74.19263663,163.52,163.51,5.27315937]
[1749604880786,99.83263663,163.52,163.51,5.27315937]
[1749604883304,99.83263663,163.52,163.45,7.1400461]
[1749604883305,26.0,163.49,163.45,7.1400461]
[1749604883510,11.8204131,163.47,163.45,7.1400461]
[1749604883883,7.9582,163.56,163.45,18.9604592]
[1749604884092,15.62675526,163.61,163.45,18.9604592]
[1749604884093,11.8204131,163.53,163.48,11.8204131]
[1749604884275,5.76,163.55,163.49,11.8204131]
[1749604884276,11.8204131,163.54,163.49,11.8204131]
[1749604885184,11.8204131,163.53,163.48,11.8204131]
[1749604886904,11.8204131,163.54,163.49,11.8204131]
[1749604887705,11.8204131,163.53,163.48,11.8204131]
[1749604889503,5.76,163.55,163.48,11.8204131]
[1749604889707,5.76,163.55,163.49,11.8204131]
[1749604889919,26.0,163.56,163.52,11.8204131]
[1749604889920,5.76,163.56,163.52,11.8204131]
[1749604891575,5.76,163.56,163.53,11.8204131]
[1749604891872,5.76,163.56,163.55,11.8204131]
[1749604892809,5.76,163.56,163.55,30.47006196]
[1749604893008,5.76,163.56,163.55,58.12932353]
[1749604893299,17.5804131,163.64,163.56,18.79181043]
[1749604894413,5.76,163.64,163.6,11.8204131]
[1749604894907,17.5804131,163.64,163.59,11.8204131]
[1749604895907,5.76,163.64,163.6,11.8204131]
[1749604896082,5.76,163.64,163.62,11.8204131]
[1749604896284,5.76,163.64,163.61,11.8204131]
[1749604897001,5.76,163.64,163.58,27.5536]
[1749604897189,17.5804131,163.64,163.59,11.8204131]
[1749604897981,11.8204131,163.63,163.58,39.3740131]
[1749604898185,11.8204131,163.61,163.58,1.5536]
[1749604898594,11.8204131,163.62,163.58,1.5536]
[1749604899812,5.76,163.64,163.58,1.5536]
[1749604899813,11.8204131,163.61,163.58,1.5536]
[1749604900212,5.76,163.64,163.58,1.5536]
[1749604900509,11.8204131,163.61,163.58,1.5536]
[1749604900711,11.8204131,163.62,163.58,13.3740131]
[1749604901110,5.76,163.64,163.59,11.8204131]
[1749604901111,17.5804131,163.64,163.59,11.8204131]
[1749604901403,11.8204131,163.62,163.58,1.5536]
[1749604902305,5.76,163.64,163.58,1.5536]
[1749604902617,11.8204131,163.62,163.58,1.5536]
[1749604902817,11.8204131,163.61,163.58,1.5536]
[1749604903223,11.8204131,163.62,163.58,1.5536]
[1749604903525,11.8204131,163.59,163.5,1.6259]
[1749604903831,11.8204131,163.53,163.5,1.6259]
[1749604904216,37.8204131,163.6,163.5,1.6259]
[1749604904419,11.8204131,163.55,163.5,13.4463131]
[1749604904628,11.8204131,163.54,163.5,13.4463131]
[1749604904944,11.8204131,163.54,163.5,1.6259]
[1749604905425,11.8204131,163.55,163.5,13.4463131]
[1749604906032,11.8204131,163.56,163.52,11.8204131]
[1749604906828,11.8204131,163.56,163.51,11.8204131]
[1749604907023,37.8204131,163.6,163.51,11.8204131]
[1749604907024,26.0,163.6,163.51,11.8204131]
[1749604907419,11.8204131,163.56,163.51,11.8204131]
[1749604907732,11.8204131,163.55,163.51,11.8204131]
[1749604908229,11.8204131,163.55,163.5,13.4463131]
[1749604909109,11.8204131,163.55,163.5,1.6259]
[1749604909444,11.8204131,163.54,163.5,13.4463131]
[1749604909815,11.8204131,163.54,163.5,1.6259]
[1749604910026,11.8204131,163.54,163.5,13.4463131]
[1749604910321,11.8204131,163.55,163.5,13.4463131]
[1749604910713,37.8204131,163.6,163.5,13.4463131]
[1749604910714,11.8204131,163.54,163.5,13.4463131]
[1749604910922,11.8204131,163.54,163.5,1.6259]
[1749604913238,11.8204131,163.53,163.49,89.9]
[1749604913819,5.74,163.56,163.48,11.8204131]
[1749604914026,11.8204131,163.53,163.49,18.64964886]
[1749604915743,11.8204131,163.53,163.48,18.64964886]
[1749604915916,11.8204131,163.53,163.48,30.47006196]
[1749604916437,11.8204131,163.52,163.48,18.64964886]
[1749604917021,26.0,163.54,163.45,7.1400461]
[1749604917022,11.8204131,163.5,163.45,7.1400461]
[1749604917226,11.8204131,163.5,163.46,18.64964886]
[1749604917537,11.8204131,163.48,163.45,7.1400461]
[1749604918117,11.8204131,163.49,163.45,7.1400461]
[1749604918318,26.0,163.52,163.45,18.9604592]
[1749604918619,11.8204131,163.51,163.46,30.47006196]
[1749604918819,11.8204131,163.5,163.45,18.9604592]
[1749604919029,11.8204131,163.5,163.46,18.64964886]
[1749604920846,11.8204131,163.47,163.45,7.1400461]
[1749604921049,11.8204131,163.48,163.45,7.1400461]
[1749604921752,11.8204131,163.47,163.45,7.1400461]
[1749604921954,11.8204131,163.46,163.45,7.1400461]
[1749604924041,11.8204131,163.46,163.45,7.1400461]
[1749604925976,0.14216157,163.48,163.45,7.1400461]
[1749604926431,11.8204131,163.46,163.45,7.1400461]
[1749604931436,29.06669304,163.49,163.45,7.1400461]
[1749604931776,11.8204131,163.46,163.45,7.1400461]
[1749604932341,11.8204131,163.47,163.45,7.1400461]
[1749604932547,37.8204131,163.48,163.45,7.1400461]
[1749604933153,7.8292,163.51,163.45,7.1400461]
[1749604933350,11.8204131,163.48,163.45,7.1400461]
[1749604933556,11.8204131,163.47,163.45,7.1400461]
[1749604933863,26.0,163.46,163.45,7.1400461]
[1749604934051,11.8204131,163.46,163.45,7.1400461]
[1749604934576,26.14216157,163.48,163.45,7.1400461]
[1749604934752,11.8204131,163.46,163.45,7.1400461]
[1749604936444,26.0,163.48,163.45,7.1400461]
[1749604936643,5.74,163.53,163.47,11.8204131]
[1749604936864,8.0187,163.55,163.48,11.8204131]
[1749604937067,11.8204131,163.6,163.45,8.7554461]
[1749604937068,5.74,163.53,163.5,11.8204131]
[1749604937272,26.0,163.51,163.5,11.8204131]
[1749604937843,5.74,163.53,163.5,11.8204131]
[1749604938159,5.74,163.53,163.48,18.64964886]
[1749604938160,5.74,163.53,163.52,11.8204131]
[1749604938747,5.74,163.53,163.52,30.47006196]
[1749604940184,5.74,163.53,163.52,11.8204131]
[1749604940411,5.74,163.53,163.48,25.6]
[1749604940412,5.74,163.53,163.51,11.8204131]
[1749604940548,5.74,163.53,163.52,11.8204131]
[1749604940747,5.74,163.53,163.51,11.8204131]
[1749604941063,31.74,163.53,163.48,25.6]
[1749604941362,31.74,163.53,163.49,11.8204131]
[1749604941942,11.8204131,163.52,163.46,18.64964886]
[1749604942146,26.0,163.5,163.46,18.64964886]
[1749604942353,26.0,163.5,163.46,30.47006196]
[1749604942563,26.0,163.5,163.47,11.8204131]
[1749604942762,26.0,163.51,163.47,11.8204131]
[1749604943375,19.73312429,163.52,163.47,19.73312429]
[1749604943571,19.73312429,163.5,163.45,8.7554461]
[1749604943778,45.73312429,163.5,163.45,28.48857039]
[1749604943950,45.73312429,163.5,163.45,8.7554461]
[1749604944154,45.73312429,163.5,163.45,28.48857039]
[1749604944558,45.73312429,163.5,163.46,19.73312429]
[1749604944961,45.73312429,163.5,163.45,8.7554461]
[1749604945154,45.73312429,163.5,163.45,28.48857039]
[1749604945369,26.0,163.5,163.46,19.73312429]
[1749604945566,26.0,163.5,163.47,19.73312429]
[1749604946576,26.0,163.5,163.45,8.7554461]
[1749604946577,19.73312429,163.5,163.46,19.73312429]
[1749604946780,26.0,163.52,163.46,19.73312429]
[1749604947080,19.73312429,163.5,163.46,19.73312429]
[1749604947751,19.73312429,163.51,163.46,19.73312429]
[1749604948366,19.73312429,163.49,163.45,28.48857039]
[1749604948878,26.0,163.52,163.46,19.73312429]
[1749604949174,19.73312429,163.51,163.46,19.73312429]
[1749604949366,26.0,163.52,163.47,19.73312429]
[1749604949570,5.74,163.53,163.51,19.73312429]
[1749604949797,5.74,163.53,163.52,19.73312429]
[1749604952656,5.74,163.61,163.52,40.13473472]
[1749604952857,5.74,163.61,163.59,19.73312429]
[1749604953074,5.74,163.61,163.6,19.73312429]
[1749604953275,5.74,163.61,163.59,19.73312429]
[1749604953582,5.74,163.61,163.55,18.64964886]
[1749604953583,5.74,163.61,163.58,19.73312429]
[1749604956078,5.74,163.61,163.57,19.73312429]
[1749604956301,19.73312429,163.59,163.52,1.6098]
[1749604956585,19.73312429,163.58,163.53,19.73312429]
[1749604958277,19.73312429,163.58,163.52,20.25944886]
[1749604958469,19.73312429,163.58,163.53,19.73312429]
[1749604958779,19.73312429,163.55,163.46,1.5421]
[1749604958979,19.73312429,163.54,163.49,19.73312429]
[1749604959392,19.73312429,163.52,163.46,1.5421]
[1749604959685,26.14216157,163.58,163.46,1.5421]
[1749604959686,19.73312429,163.51,163.46,21.27522429]
[1749604960268,19.73312429,163.52,163.47,19.73312429]
[1749604961097,19.73312429,163.53,163.48,19.73312429]
[1749604961301,19.73312429,163.52,163.47,19.73312429]
[1749604961469,26.0,163.55,163.48,19.73312429]
[1749604961470,19.73312429,163.53,163.48,19.73312429]
[1749604961787,25.58,163.6,163.49,19.73312429]
[1749604962091,19.73312429,163.55,163.5,19.73312429]
[1749604963694,19.73312429,163.56,163.51,19.73312429]
[1749604964299,19.73312429,163.55,163.51,19.73312429]
[1749604964597,19.73312429,163.55,163.48,0.14216157]
[1749604964778,19.73312429,163.55,163.5,19.73312429]
[1749604965594,26.0,163.57,163.47,134.12964886]
[1749604965595,19.73312429,163.54,163.47,134.12964886]
[1749604965798,19.73312429,163.53,163.48,19.73312429]
[1749604966170,19.73312429,163.52,163.47,109.63312429]
[1749604966474,19.73312429,163.53,163.48,19.73312429]
[1749604966664,19.73312429,163.52,163.47,109.63312429]
[1749604967084,19.73312429,163.5,163.47,89.9]
[1749604967393,19.73312429,163.5,163.46,21.27522429]
[1749604967573,19.73312429,163.5,163.46,1.5421]
[1749604970080,26.14216157,163.56,163.46,21.27522429]
[1749604970413,19.73312429,163.52,163.47,19.73312429]
[1749604971595,19.73312429,163.52,163.46,1.5421]
[1749604971898,19.73312429,163.52,163.47,19.73312429]
[1749604972198,5.72,163.55,163.45,7.1400461]
[1749604972409,6.4391,163.54,163.46,19.73312429]
[1749604972707,6.4391,163.54,163.47,19.73312429]
[1749604972865,19.73312429,163.51,163.47,19.73312429]
[1749604973069,6.4391,163.54,163.46,18.64964886]
[1749604973294,19.73312429,163.51,163.47,19.73312429]
[1749604973878,6.4391,163.54,163.47,19.73312429]
[1749604974076,19.73312429,163.52,163.47,19.73312429]
[1749604974972,19.73312429,163.53,163.48,19.73312429]
[1749604975172,19.73312429,163.52,163.48,19.73312429]
[1749604976789,19.73312429,163.53,163.48,19.73312429]
[1749604977483,5.72,163.55,163.48,19.73312429]
[1749604977681,19.73312429,163.53,163.48,19.73312429]
[1749604979000,5.72,163.55,163.48,19.73312429]
[1749604979190,19.73312429,163.53,163.48,19.73312429]
[1749604979690,25.45312429,163.55,163.51,19.73312429]
[1749604980192,5.72,163.55,163.51,19.73312429]
[1749604980584,25.45312429,163.55,163.5,19.73312429]
[1749604981623,5.72,163.59,163.54,19.73312429]
[1749604981900,5.72,163.59,163.55,19.73312429]
[1749604982111,25.45312429,163.59,163.54,19.73312429]
[1749604983010,19.73312429,163.58,163.54,19.73312429]
[1749604984404,25.45312429,163.59,163.54,19.73312429]
[1749604985303,17.54886859,163.59,163.54,11.82886859]
[1749604987003,5.72,163.59,163.56,11.82886859]
[1749604987208,5.72,163.59,163.57,11.82886859]
[1749604987507,5.72,163.59,163.56,11.82886859]
[1749604988303,5.72,163.59,163.52,18.79181043]
[1749604988613,5.72,163.59,163.55,11.82886859]
[1749604989294,11.82886859,163.56,163.5,1.6382]
[1749604989494,11.82886859,163.56,163.51,30.47851745]
[1749604989695,11.82886859,163.55,163.51,18.64964886]
[1749604990010,11.82886859,163.54,163.49,11.82886859]
[1749604990388,12.3405,163.59,163.49,11.82886859]
[1749604990609,12.3405,163.59,163.5,11.82886859]
[1749604990610,11.82886859,163.55,163.5,11.82886859]
[1749604990997,11.82886859,163.55,163.49,18.64964886]
[1749604991184,19.7247872,163.55,163.5,19.7247872]
[1749604991790,19.7247872,163.54,163.5,19.7247872]
[1749604992089,19.7247872,163.54,163.49,38.37443606]
[1749604993715,19.7247872,163.54,163.49,19.7247872]
[1749604995608,19.7247872,163.57,163.52,19.7247872]
[1749604995811,5.72,163.59,163.56,19.7247872]
[1749604996111,5.72,163.59,163.57,19.7247872]
[1749604996310,5.72,163.59,163.56,19.7247872]
[1749604996701,5.72,163.59,163.57,19.7247872]
[1749604997022,5.72,163.59,163.58,19.7247872]
[1749604997511,5.72,163.59,163.58,38.37443606]
[1749604999094,5.72,163.59,163.58,38.51659763]
[1749604999408,5.72,163.59,163.58,18.64964886]
[1749604999611,5.72,163.59,163.58,38.37443606]
[1749605000113,5.72,163.59,163.57,25.54]
[1749605000294,5.72,163.59,163.58,19.7247872]
[1749605000691,5.72,163.59,163.57,45.2647872]
[1749605001097,5.72,163.59,163.57,25.54]
[1749605001293,5.72,163.59,163.56,19.7247872]
[1749605001516,5.72,163.59,163.54,44.18964886]
[1749605001718,5.72,163.59,163.56,19.7247872]
[1749605002497,5.72,163.59,163.55,19.7247872]
[1749605003824,5.72,163.59,163.54,18.64964886]
[1749605004000,25.4447872,163.59,163.55,19.7247872]
[1749605005020,5.72,163.59,163.56,19.7247872]
[1749605005810,5.72,163.59,163.58,19.7247872]
[1749605006010,5.72,163.59,163.58,38.37443606]
[1749605007226,5.72,163.59,163.57,45.2647872]
[1749605007525,5.72,163.59,163.56,38.37443606]
[1749605007709,5.72,163.59,163.56,19.7247872]
[1749605008102,5.72,163.59,163.57,19.7247872]
[1749605009028,5.72,163.59,163.55,25.54]
[1749605009029,5.72,163.59,163.56,38.37443606]
[1749605009224,5.72,163.59,163.56,19.7247872]
[1749605011234,5.72,163.59,163.55,45.2647872]
[1749605011730,5.72,163.59,163.54,18.64964886]
[1749605011928,19.7247872,163.58,163.54,38.37443606]
[1749605012127,19.7247872,163.58,163.54,18.64964886]
[1749605013246,11.83047379,163.57,163.52,11.83047379]
[1749605013529,11.83047379,163.57,163.52,37.37047379]
[1749605013727,11.83047379,163.53,163.49,8.1207133]
[1749605013928,11.83047379,163.53,163.48,13.49487379]
[1749605014341,11.83047379,163.52,163.48,11.83047379]
[1749605014634,11.83047379,163.52,163.48,18.64964886]
[1749605014925,37.83047379,163.56,163.51,11.83047379]
[1749605015240,19.72429399,163.55,163.5,19.72429399]
[1749605015441,26.0,163.56,163.5,19.72429399]
[1749605015442,19.72429399,163.54,163.5,18.64964886]
[1749605016436,19.72429399,163.55,163.5,19.72429399]
[1749605018429,5.72,163.59,163.52,19.72429399]
[1749605018612,19.72429399,163.57,163.52,19.72429399]
[1749605019121,19.72429399,163.56,163.52,19.72429399]
[1749605019330,19.72429399,163.56,163.49,18.79181043]
[1749605019515,19.72429399,163.56,163.51,19.72429399]
[1749605019718,26.0,163.58,163.52,19.72429399]
[1749605020036,5.72,163.59,163.54,18.64964886]
[1749605020216,25.44429399,163.59,163.54,19.72429399]
[1749605020412,19.72429399,163.58,163.53,19.72429399]
[1749605020615,19.72429399,163.56,163.52,19.72429399]
[1749605021433,19.72429399,163.55,163.51,25.54]
[1749605021732,19.72429399,163.56,163.51,45.26429399]
[1749605022514,19.72429399,163.56,163.5,26.0]
[1749605022734,19.72429399,163.56,163.51,19.72429399]
[1749605026141,19.72429399,163.56,163.52,19.72429399]
[1749605026441,19.72429399,163.57,163.52,19.72429399]
[1749605026819,5.72,163.59,163.52,19.72429399]
[1749605027021,19.72429399,163.56,163.52,19.72429399]
[1749605027828,19.72429399,163.56,163.51,18.64964886]
[1749605028024,5.72,163.59,163.53,19.72429399]
[1749605028229,5.72,163.59,163.55,19.72429399]
[1749605028930,5.72,163.59,163.58,19.72429399]
[1749605030428,5.72,163.59,163.58,38.37394285]
[1749605030627,5.72,163.59,163.54,18.79181043]
[1749605030825,5.72,163.59,163.55,19.72429399]
[1749605031116,5.72,163.59,163.52,135.62429399]
[1749605031117,19.72429399,163.57,163.52,135.62429399]
[1749605031330,5.72,163.59,163.52,135.62429399]
[1749605031331,19.72429399,163.56,163.52,89.9]
[1749605031536,19.72429399,163.55,163.5,38.37394285]
[1749605031734,5.72,163.59,163.5,38.37394285]
[1749605031735,19.72429399,163.56,163.51,19.72429399]
[1749605032824,5.72,163.59,163.51,19.72429399]
[1749605033048,19.72429399,163.56,163.51,19.72429399]
[1749605033549,19.72429399,163.56,163.5,18.64964886]
[1749605033736,19.72429399,163.56,163.51,19.72429399]
[1749605034246,19.72429399,163.56,163.5,18.64964886]
[1749605034451,19.72429399,163.55,163.5,38.37394285]
[1749605034767,5.72,163.59,163.49,27.5394]
[1749605034768,5.72,163.59,163.49,47.26369399]
[1749605034933,19.72429399,163.54,163.49,47.26369399]
[1749605035856,19.72429399,163.54,163.5,19.72429399]
[1749605036152,19.72429399,163.54,163.49,27.5394]
[1749605036354,19.72429399,163.54,163.49,47.26369399]
[1749605037840,19.72429399,163.54,163.5,19.72429399]
[1749605038027,19.72429399,163.55,163.5,19.72429399]
[1749605038451,19.72429399,163.54,163.49,47.26369399]
[1749605039334,11.83569083,163.54,163.49,39.37509083]
[1749605039534,11.83569083,163.54,163.49,27.5394]
[1749605039742,11.83569083,163.54,163.49,39.37509083]
[1749605040255,11.83569083,163.55,163.5,11.83569083]
[1749605040557,5.7,163.56,163.5,11.83569083]
[1749605040754,5.7,163.56,163.49,39.37509083]
[1749605041453,11.83569083,163.53,163.49,27.5394]
[1749605041654,11.83569083,163.53,163.49,39.37509083]
[1749605042027,11.83569083,163.52,163.46,18.64964886]
[1749605042367,11.83569083,163.52,163.47,11.83569083]
[1749605042737,5.7,163.56,163.47,11.83569083]
[1749605042738,5.7,163.56,163.51,11.83569083]
[1749605043043,5.7,163.56,163.52,11.83569083]
[1749605044645,17.53569083,163.56,163.51,11.83569083]
[1749605046454,17.53569083,163.56,163.49,44.64964886]
[1749605046664,17.53569083,163.56,163.51,11.83569083]
[1749605047562,11.83569083,163.55,163.5,30.48533969]
[1749605047767,11.83569083,163.54,163.5,30.48533969]
[1749605047987,11.83569083,163.54,163.5,11.83569083]
[1749605048140,11.83569083,163.54,163.49,37.83569083]
[1749605049071,11.83569083,163.54,163.49,11.83569083]
[1749605049581,11.83569083,163.5,163.45,8.7149461]
[1749605049879,11.83569083,163.48,163.45,7.1400461]
[1749605050268,11.83569083,163.49,163.45,7.1400461]
[1749605051962,32.0087,163.54,163.46,11.83569083]
[1749605052265,11.83569083,163.51,163.47,11.83569083]
[1749605052462,11.83569083,163.52,163.47,11.83569083]
[1749605052667,11.83569083,163.51,163.46,11.83569083]
[1749605052962,11.83569083,163.49,163.45,7.1400461]
[1749605053164,32.0087,163.54,163.45,7.1400461]
[1749605053165,11.83569083,163.47,163.45,7.1400461]
[1749605053567,11.83569083,163.48,163.45,7.1400461]
[1749605055256,0.14216157,163.52,163.45,7.1400461]
[1749605055457,11.83569083,163.48,163.45,7.1400461]
[1749605055657,6.0087,163.54,163.47,11.83569083]
[1749605055886,17.53569083,163.54,163.5,11.83569083]
[1749605056089,11.83569083,163.53,163.46,18.64964886]
[1749605056298,11.83569083,163.5,163.45,33.1400461]
[1749605056461,11.83569083,163.5,163.45,7.1400461]
[1749605056879,11.83569083,163.5,163.45,18.97573693]
[1749605058163,11.83569083,163.5,163.45,7.1400461]
[1749605058382,11.83569083,163.5,163.46,11.83569083]
[1749605058592,11.83569083,163.5,163.45,18.97573693]
[1749605059264,11.83569083,163.49,163.45,7.1400461]
[1749605059675,5.7,163.54,163.45,7.1400461]
[1749605059890,11.83569083,163.5,163.45,18.97573693]
[1749605061277,5.7,163.54,163.45,7.1400461]
[1749605061278,11.83569083,163.49,163.45,7.1400461]
[1749605062293,11.83569083,163.48,163.45,7.1400461]
[1749605062599,11.83569083,163.47,163.45,7.1400461]
[1749605063302,18.45479083,163.52,163.45,7.1400461]
[1749605063594,44.45479083,163.52,163.45,7.1400461]
[1749605063884,11.83569083,163.49,163.45,7.1400461]
[1749605064264,32.6191,163.52,163.45,7.1400461]
[1749605064465,5.7,163.54,163.48,11.83569083]
[1749605064672,5.7,163.54,163.5,11.83569083]
[1749605065282,26.0,163.51,163.48,11.83569083]
[1749605065493,26.0,163.51,163.46,0.14216157]
[1749605065695,26.0,163.51,163.48,11.83569083]
[1749605065863,26.0,163.51,163.45,7.1400461]
[1749605066064,26.0,163.51,163.46,18.64964886]
[1749605066268,26.0,163.51,163.48,11.83569083]
[1749605066980,26.0,163.51,163.47,11.83569083]
[1749605067178,26.0,163.51,163.49,11.83569083]
[1749605067377,26.0,163.51,163.5,11.83569083]
[1749605067779,26.0,163.51,163.46,0.14216157]
[1749605068202,26.0,163.51,163.5,11.83569083]
[1749605068785,31.7,163.54,163.5,11.83569083]
[1749605068990,31.7,163.54,163.51,11.83569083]
[1749605069699,31.7,163.54,163.5,11.83569083]
[1749605069878,31.7,163.54,163.46,18.79181043]
[1749605070194,31.7,163.54,163.5,11.83569083]
[1749605071090,11.83569083,163.53,163.46,0.14216157]
[1749605071398,31.7,163.54,163.5,11.83569083]
[1749605071715,31.7,163.54,163.51,11.83569083]
[1749605072084,31.7,163.54,163.46,18.79181043]
[1749605072304,31.7,163.54,163.5,11.83569083]
[1749605072484,31.7,163.54,163.51,11.83569083]
[1749605072876,31.7,163.54,163.5,11.83569083]
[1749605074582,31.7,163.54,163.46,18.79181043]
[1749605074788,31.7,163.54,163.5,11.83569083]
[1749605076205,31.7,163.54,163.51,11.83569083]
[1749605076382,31.7,163.54,163.48,18.64964886]
[1749605076583,31.7,163.54,163.5,11.83569083]
[1749605076793,11.83569083,163.53,163.48,11.83569083]
[1749605078108,11.83569083,163.52,163.47,11.83569083]
[1749605078691,31.7,163.54,163.47,11.83569083]
[1749605078889,11.83569083,163.52,163.46,18.64964886]
[1749605079084,11.83569083,163.52,163.48,11.83569083]
[1749605079595,11.83569083,163.49,163.45,7.1400461]
[1749605079792,11.83569083,163.46,163.45,7.1400461]
[1749605080400,37.83569083,163.46,163.45,7.1400461]
[1749605081383,26.0,163.46,163.45,7.1400461]
[1749605081592,37.83569083,163.46,163.45,7.1400461]
[1749605083523,26.0,163.46,163.45,7.1400461]
[1749605083714,37.83569083,163.46,163.45,7.1400461]
[1749605085190,26.0,163.46,163.45,7.1400461]
[1749605087118,26.0,163.47,163.45,7.1400461]
[1749605089113,11.83569083,163.48,163.45,7.1400461]
[1749605089691,35.19147978,163.5,163.45,7.1400461]
[1749605089692,26.0,163.51,163.46,11.83569083]
[1749605089922,37.83569083,163.51,163.46,11.83569083]
[1749605090132,11.83569083,163.49,163.45,7.1400461]
[1749605095618,28.99720021,163.51,163.45,7.1400461]
[1749605095823,11.83569083,163.49,163.45,7.1400461]
[1749605096415,28.99720021,163.51,163.45,7.1400461]
[1749605096723,11.83569083,163.49,163.45,7.1400461]
[1749605097509,11.83569083,163.5,163.45,18.97573693]
[1749605097819,40.83289104,163.51,163.46,11.83569083]
[1749605098207,26.0,163.51,163.47,11.83569083]
[1749605099626,11.83569083,163.52,163.47,11.83569083]
[1749605100308,5.7,163.54,163.5,11.83569083]
[1749605100703,5.7,163.54,163.51,11.83569083]
[1749605101920,11.83569083,163.57,163.52,37.83569083]
[1749605102227,11.83569083,163.56,163.51,11.83569083]
[1749605102423,11.83569083,163.54,163.49,26.0]
[1749605102602,11.83569083,163.54,163.49,11.83569083]
[1749605102804,11.83569083,163.54,163.5,11.83569083]
[1749605103013,8.6892373,163.58,163.47,44.79181043]
[1749605103204,11.83569083,163.54,163.5,11.83569083]
[1749605103726,11.83569083,163.55,163.5,11.83569083]
[1749605104026,5.68,163.6,163.54,11.83569083]
[1749605104221,5.68,163.6,163.58,11.83569083]
[1749605104418,5.68,163.6,163.59,11.83569083]
[1749605104925,5.68,163.6,163.58,11.83569083]
[1749605105123,5.68,163.6,163.54,18.64964886]
[1749605105305,17.51569083,163.6,163.55,11.83569083]
[1749605105500,11.83569083,163.58,163.53,37.83569083]
[1749605106228,11.83569083,163.55,163.5,11.83569083]
[1749605106525,11.83569083,163.54,163.5,11.83569083]
[1749605106728,6.3179,163.59,163.5,11.83569083]
[1749605106907,11.83569083,163.55,163.5,11.83569083]
[1749605107308,11.83569083,163.55,163.51,11.83569083]
[1749605107501,11.83569083,163.57,163.52,11.83569083]
[1749605107708,11.83569083,163.57,163.53,11.83569083]
[1749605107925,11.83569083,163.58,163.53,11.83569083]
[1749605109002,11.83569083,163.58,163.5,0.14216157]
[1749605109222,11.83569083,163.58,163.53,11.83569083]
[1749605109531,11.83569083,163.54,163.48,1.634]
[1749605109732,11.83569083,163.51,163.45,13.4769461]
[1749605109915,26.0,163.55,163.46,11.83569083]
[1749605110221,11.83569083,163.54,163.49,11.83569083]
[1749605110724,11.83569083,163.56,163.46,18.79181043]
[1749605110928,11.83569083,163.55,163.46,18.79181043]
[1749605111127,11.83569083,163.55,163.51,11.83569083]
[1749605111427,27.6245,163.58,163.51,11.83569083]
[1749605111730,11.83569083,163.57,163.52,11.83569083]
[1749605111932,11.83569083,163.56,163.52,11.83569083]
[1749605112605,1.6245,163.58,163.52,11.83569083]
[1749605112806,11.83569083,163.56,163.49,0.14216157]
[1749605113054,11.83569083,163.56,163.52,11.83569083]
[1749605113535,1.6245,163.58,163.49,0.14216157]
[1749605113733,11.83569083,163.56,163.51,11.83569083]
[1749605114035,11.83569083,163.56,163.49,0.14216157]
[1749605114214,11.83569083,163.55,163.51,11.83569083]
[1749605114416,11.83569083,163.56,163.51,11.83569083]
[1749605114610,11.83569083,163.56,163.52,11.83569083]
[1749605115215,1.6245,163.58,163.49,0.14216157]
[1749605115418,11.83569083,163.56,163.51,11.83569083]
[1749605115636,11.83569083,163.56,163.52,11.83569083]
[1749605117329,11.83569083,163.57,163.52,11.83569083]
[1749605117934,11.83569083,163.58,163.53,11.83569083]
[1749605118258,31.68,163.6,163.55,11.83569083]
[1749605118447,17.51569083,163.6,163.55,11.83569083]
[1749605118742,17.51569083,163.6,163.52,18.64964886]
[1749605118743,5.68,163.6,163.57,11.83569083]
[1749605120325,5.68,163.6,163.59,11.83569083]
[1749605120646,5.68,163.6,163.58,11.83569083]
[1749605121855,11.83569083,163.59,163.53,25.5]
[1749605122028,11.83569083,163.59,163.54,11.83569083]
[1749605122527,43.51569083,163.6,163.55,11.83569083]
[1749605123251,11.83569083,163.59,163.55,11.83569083]
[1749605123430,31.68,163.6,163.55,11.83569083]
[1749605123633,11.83569083,163.59,163.53,25.5]
[1749605123835,11.83569083,163.59,163.55,11.83569083]
[1749605124435,43.51569083,163.6,163.55,11.83569083]